lending/lending_fUSD_20251106
["ID","MTS","AMOUNT","RATE_DAILY","PERIOD"]
[393274081,1762415441101,-150.0,0.00016963,2]
[393274082,1762415441110,-150.0,0.00016963,2]
[393274083,1762415441119,-500.0,0.00016963,2]
[393274084,1762415441128,-1500.0,0.00016968,2]
[393274085,1762415441137,-2326.0,0.00016986,2]
[393274086,1762415441146,-500.0,0.00016989,2]
[393274087,1762415441155,-500.0,0.00016989,2]
[393274088,1762415441165,-500.0,0.00016989,2]
[393274089,1762415441175,-500.0,0.00016989,2]
[393274090,1762415441184,-250.0,0.00017,2]
[393274091,1762415441193,-2000.0,0.00017,2]
[393274092,1762415441203,-477.12,0.00017041,2]
[393274093,1762415441213,-316.47,0.00017076,2]
[393274094,1762415441222,-500.0,0.000171,2]
[393274095,1762415441231,-599.0,0.000171,2]
[393274096,1762415441241,-500.0,0.000171,2]
[393274097,1762415441250,-300.0,0.000171,2]
[393274098,1762415441259,-500.0,0.000171,2]
[393274099,1762415441269,-500.0,0.000171,2]
[393274100,1762415441278,-500.0,0.000171,2]
[393274101,1762415441287,-150.0,0.000171,2]
[393274102,1762415441295,-150.0,0.000171,2]
[393274103,1762415441304,-150.0,0.000171,2]
[393274104,1762415441313,-150.0,0.000171,2]
[393274105,1762415441323,-500.0,0.000171,2]
[393274106,1762415441331,-251.64103016,0.000171,2]
[393274107,1762415441340,-150.0,0.000171,2]
[393274108,1762415441350,-150.0,0.000171,2]
[393274109,1762415441361,-500.0,0.000171,2]
[393274110,1762415441370,-500.0,0.0001715,2]
[393274111,1762415441379,-419.7902568,0.0001715,2]
[393274112,1762415441388,-231.42602229,0.0001715,2]
[393274113,1762415441397,-10996.33501503,0.00017163,2]
[393274114,1762415441406,-13151.82569831,0.00017163,2]
[393274115,1762415441417,-356.71078145,0.00017163,2]
[393274116,1762415441426,-273.68,0.00017175,2]
[393274117,1762415441435,-150.0,0.00017178,2]
[393274118,1762415441444,-150.0,0.00017178,2]
[393274119,1762415441453,-166.66,0.00017234,2]
[393274120,1762415441462,-599.0,0.00017237,2]
[393274121,1762415441471,-500.0,0.00017237,2]
[393274122,1762415441480,-300.0,0.00017237,2]
[393274123,1762415441490,-328.38259742,0.00017237,2]
[393274124,1762415441499,-500.0,0.00017237,2]
[393274125,1762415441508,-500.0,0.00017237,2]
[393274126,1762415441517,-150.0,0.00017237,2]
[393274127,1762415441526,-150.0,0.00017237,2]
[393274128,1762415441535,-228.39525195,0.00017237,2]
[393274129,1762415441544,-150.0,0.00017237,2]
[393274130,1762415441552,-500.0,0.00017237,2]
[393274131,1762415441562,-200.84185402,0.00017237,2]
[393274132,1762415441571,-150.0,0.00017237,2]
[393274133,1762415441580,-500.0,0.00017237,2]
[393274134,1762415441589,-561.02813925,0.00017269,2]
[393274135,1762415441598,-1300.0,0.000173,6]
[393274136,1762415441608,-607.0,0.00017322,2]
[393274137,1762415441617,-574.0,0.00017322,2]
[393274138,1762415441626,-3423.0,0.00017322,2]
[393274139,1762415441636,-1315.0,0.00017322,2]
[393274140,1762415441647,-1596.0,0.00017322,2]
[393274141,1762415441656,-820.0,0.00017322,2]
[393274142,1762415441665,-812.0,0.00017322,2]
[393274143,1762415441675,-1273.0,0.00017322,2]
[393274144,1762415441684,-6475.0,0.00017322,2]
[393274145,1762415441694,-2141.0,0.00017322,2]
[393274146,1762415441703,-559.0,0.00017322,2]
[393274147,1762415441714,-6658.0,0.00017322,2]
[393274148,1762415441723,-599.0,0.00017374,2]
[393274149,1762415441732,-500.0,0.00017374,2]
[393274150,1762415441741,-150.0,0.00017374,2]
[393274151,1762415441751,-500.0,0.00017374,2]
[393274152,1762415441760,-500.0,0.00017374,2]
[393274153,1762415441769,-214.45499352,0.00017374,2]
[393274154,1762415441778,-150.0,0.00017374,2]
[393274155,1762415441787,-150.0,0.00017374,2]
[393274156,1762415441796,-500.0,0.00017374,2]
[393274157,1762415441806,-150.0,0.00017374,2]
[393274158,1762415441815,-450.0,0.00017374,2]
[393274159,1762415441824,-1169.62774866,0.00017388,7]
[393274160,1762415441834,-1600.0,0.000174,6]
[393274161,1762415441845,-10996.33501503,0.00017409,2]
[393274162,1762415441855,-13151.82569831,0.00017409,2]
[393274163,1762415441864,-356.71078145,0.00017409,2]
[393274164,1762415441874,-1129.73,0.00017413,2]
[393274165,1762415441883,-2000.0,0.00017416,2]
[393274166,1762415441893,-2000.0,0.00017416,2]
[393274167,1762415441903,-2000.0,0.00017416,2]
[393274168,1762415442053,-1655.82420147,0.00017416,2]
[393274169,1762415442084,-2000.0,0.00017416,2]
[393274170,1762415442096,-2000.0,0.00017416,2]
[393274171,1762415442108,-2000.0,0.00017416,2]
[393274172,1762415442120,-162.64913491,0.00017473,2]
[393274173,1762415442132,-300.0,0.000175,6]
[393274174,1762415442142,-477.87911524,0.000175,2]
[393274175,1762415442152,-599.0,0.00017511,2]
[393274176,1762415442162,-500.0,0.00017511,2]
[393274177,1762415442172,-500.0,0.00017511,2]
[393274178,1762415442181,-500.0,0.00017511,2]
[393274179,1762415442190,-200.54651287,0.00017511,2]
[393274180,1762415442199,-500.0,0.00017511,2]
[393274181,1762415442209,-161.37025384,0.00017511,2]
[393274182,1762415442218,-2000.0,0.00017516,2]
[393274183,1762415442227,-1365.44,0.00017528,2]
[393274184,1762415442236,-698.44,0.00017528,2]
[393274185,1762415442246,-977.51,0.00017528,2]
[393274186,1762415442255,-698.44,0.00017528,2]
[393274187,1762415442264,-698.44,0.00017528,2]
[393274188,1762415442274,-698.44,0.00017528,2]
[393274189,1762415442283,-1396.88,0.00017528,2]
[393274190,1762415442293,-1408.38,0.00017528,2]
[393274191,1762415442302,-698.44,0.00017528,2]
[393274192,1762415442311,-698.44,0.00017528,2]
[393274193,1762415442320,-698.44,0.00017528,2]
[393274194,1762415442330,-698.44,0.00017528,2]
[393274195,1762415442339,-698.44,0.00017528,2]
[393274196,1762415442349,-698.56,0.00017528,2]
[393274197,1762415442358,-823.34,0.00017528,2]
[393274198,1762415442367,-698.44,0.00017528,2]
[393274199,1762415442376,-698.56,0.00017528,2]
[393274200,1762415442386,-1396.88,0.00017528,2]
[393274201,1762415442395,-698.44,0.00017528,2]
[393274202,1762415442404,-893.73840764,0.0001755,2]
[393274203,1762415442413,-207.91123044,0.00017577,2]
[393274204,1762415442423,-176.91,0.00017582,2]
[393274205,1762415442432,-176.91,0.00017582,2]
[393274206,1762415442441,-353.7,0.00017582,2]
[393274207,1762415442451,-370.35,0.00017582,2]
[393274209,1762415442460,-176.88,0.00017582,2]
[393274212,1762415442469,-561.02813925,0.00017584,2]
[393274214,1762415442478,-300.0,0.000176,6]
[393274216,1762415442487,-721.0,0.00017602,2]
[393274217,1762415442496,-450.0,0.00017638,2]
[393274218,1762415442506,-599.0,0.00017648,2]
[393274219,1762415442516,-500.0,0.00017648,2]
[393274220,1762415442525,-500.0,0.00017648,2]
[393274221,1762415442534,-500.0,0.00017648,2]
[393274222,1762415442544,-10996.33501503,0.00017654,2]
[393274223,1762415442553,-13151.82569831,0.00017654,2]
[393274224,1762415442563,-356.71078145,0.00017654,2]
[393274225,1762415442572,-514.51741513,0.00017698,2]
[393274226,1762415442582,-300.0,0.000177,6]
[393274227,1762415442591,-465.64,0.00017724,2]
[393274228,1762415442600,-500.0,0.00017726,2]
[393274229,1762415442609,-500.0,0.00017727,2]
[393274230,1762415442619,-500.0,0.00017727,2]
[393274231,1762415442629,-500.0,0.00017727,2]
[393274232,1762415442638,-307.45218061,0.00017727,2]
[393274233,1762415442646,-599.0,0.00017785,2]
[393274234,1762415442655,-500.0,0.00017785,2]
[393274235,1762415442665,-500.0,0.00017785,2]
[393274236,1762415442676,-721.0,0.00017787,2]
[393274237,1762415442685,-17925.914755,0.000178,2]
[393274238,1762415442695,-300.0,0.000178,6]
[393274239,1762415442704,-2500.0,0.00017812,3]
[393274240,1762415442713,-2270.0718,0.0001782,2]
[393274241,1762415442723,-1223.18376974,0.0001782,2]
[393274242,1762415442732,-2500.0,0.00017821,3]
[393274243,1762415442741,-229.391494,0.00017821,3]
[393274244,1762415442750,-194.555493,0.00017821,3]
[393274245,1762415442760,-2500.0,0.0001783,3]
[393274246,1762415442769,-2500.0,0.00017838,3]
[393274247,1762415442779,-229.391494,0.00017842,3]
[393274248,1762415442788,-194.555493,0.00017842,3]
[393274249,1762415442798,-2500.0,0.00017847,3]
[393274250,1762415442808,-200.0,0.00017855,2]
[393274251,1762415442817,-500.0,0.00017856,2]
[393274252,1762415442827,-200.0,0.00017856,2]
[393274253,1762415442836,-2500.0,0.00017856,3]
[393274254,1762415442845,-229.391494,0.00017863,3]
[393274255,1762415442855,-194.555493,0.00017863,3]
[393274256,1762415442864,-2500.0,0.00017865,3]
[393274257,1762415442874,-2500.0,0.00017874,3]
[393274258,1762415442884,-2500.0,0.00017882,3]
[393274259,1762415442893,-229.391494,0.00017884,3]
[393274260,1762415442903,-194.555493,0.00017884,3]
[393274261,1762415442912,-158.086052,0.00017884,3]
[393274262,1762415442921,-721.0,0.00017885,2]
[393274263,1762415442933,-1132.95793221,0.0001789,2]
[393274264,1762415442943,-2500.0,0.00017891,3]
[393274265,1762415442952,-1132.95793221,0.00017895,2]
[393274266,1762415442962,-296.87113101,0.00017899,2]
[393274267,1762415442971,-500.0,0.00017899,2]
[393274268,1762415442980,-843.07225031,0.000179,2]
[393274269,1762415442990,-540.88402296,0.000179,3]
[393274270,1762415443000,-2744.9989,0.000179,2]
[393274271,1762415443009,-2500.0,0.000179,3]
[393274272,1762415443024,-1856.0,0.000179,2]
[393274273,1762415443033,-10996.33501503,0.000179,2]
[393274274,1762415443043,-700.0,0.000179,6]
[393274275,1762415443053,-13151.82569831,0.000179,2]
[393274276,1762415443063,-356.71078145,0.000179,2]
[393274277,1762415443072,-179.69179573,0.000179,2]
[393274278,1762415443081,-561.02813925,0.000179,2]
[393274279,1762415443091,-1132.95793221,0.000179,2]
[393274280,1762415443100,-2068.0,0.000179,2]
[393274281,1762415443109,-155.031618,0.00017905,3]
[393274282,1762415443118,-153.5764,0.00017905,3]
[393274283,1762415443127,-229.391494,0.00017905,3]
[393274284,1762415443136,-194.555493,0.00017905,3]
[393274285,1762415443145,-158.086052,0.00017905,3]
[393274286,1762415443154,-161.386156,0.00017905,3]
[393274287,1762415443163,-152.1205,0.00017905,3]
[393274288,1762415443172,-153.5764,0.00017905,3]
[393274289,1762415443182,-157.365284,0.00017905,3]
[393274290,1762415443191,-158.086052,0.00017905,3]
[393274291,1762415443200,-151.166693,0.00017905,3]
[393274292,1762415443210,-155.031618,0.00017905,3]
[393274294,1762415443219,-153.074293,0.00017905,3]
[393274296,1762415443228,-721.0,0.00017914,2]
[393274297,1762415443238,-599.0,0.00017922,2]
[393274298,1762415443247,-500.0,0.00017922,2]
[393274299,1762415443256,-500.0,0.00017922,2]
[393274300,1762415443265,-2270.0718,0.0001793,2]
[393274301,1762415443274,-1396.76,0.00017945,2]
[393274302,1762415443283,-2500.0,0.00017964,2]
[393274303,1762415443292,-2500.0,0.00017964,2]
[393274304,1762415443301,-278.08512742,0.00017964,2]
[393274305,1762415443310,-321.63580231,0.00017964,2]
[393274306,1762415443319,-2500.0,0.00017964,2]
[393274307,1762415443328,-2500.0,0.00017964,2]
[393274308,1762415443338,-329.0,0.00017973,2]
[393274309,1762415443346,-328.0,0.00017973,2]
[393274310,1762415443355,-500.0,0.00017973,2]
[393274311,1762415443364,-500.0,0.00017973,2]
[393274312,1762415443373,-500.0,0.00017973,2]
[393274313,1762415443382,-500.0,0.00017973,2]
[393274314,1762415443391,-506.28852507,0.00017973,2]
[393274315,1762415443400,-500.0,0.00017973,2]
[393274316,1762415443409,-500.0,0.00017973,2]
[393274317,1762415443418,-500.0,0.00017973,2]
[393274318,1762415443428,-516.45251666,0.00017973,2]
[393274319,1762415443437,-500.0,0.00017973,2]
[393274320,1762415443446,-183.4285495,0.00017973,2]
[393274321,1762415443455,-511.61246005,0.00017973,2]
[393274322,1762415443464,-500.0,0.00017973,2]
[393274323,1762415443474,-500.0,0.00017973,2]
[393274324,1762415443483,-500.0,0.00017973,2]
[393274325,1762415443492,-500.0,0.00017973,2]
[393274326,1762415443502,-500.0,0.00017973,2]
[393274327,1762415443511,-500.0,0.00017973,2]
[393274328,1762415443521,-500.0,0.00017973,2]
[393274329,1762415443530,-500.0,0.00017973,2]
[393274330,1762415443539,-634.78303561,0.00017973,2]
[393274331,1762415443548,-459.61733602,0.00017973,2]
[393274332,1762415443557,-500.0,0.00017973,2]
[393274333,1762415443567,-500.0,0.00017973,2]
[393274334,1762415443576,-500.0,0.00017973,2]
[393274335,1762415443585,-500.0,0.00017973,2]
[393274336,1762415443594,-500.0,0.00017973,2]
[393274337,1762415443603,-351.16553114,0.00017973,2]
[393274338,1762415443612,-500.0,0.00017973,2]
[393274339,1762415443621,-745.77,0.0001799,2]
[393274340,1762415443631,-500.0,0.0001799,2]
[393274341,1762415443640,-500.0,0.0001799,2]
[393274342,1762415443650,-500.0,0.0001799,2]
[393274343,1762415443659,-500.0,0.0001799,2]
[393274344,1762415443668,-500.0,0.0001799,2]
[393274345,1762415443678,-500.0,0.0001799,2]
[393274346,1762415443688,-500.0,0.0001799,2]
[393274347,1762415443698,-500.0,0.0001799,2]
[393274348,1762415443709,-500.0,0.0001799,2]
[393274349,1762415443719,-811.11079061,0.0001799,2]
[393274350,1762415443728,-811.11079061,0.0001799,2]
[393274351,1762415443737,-151.0,0.00017996,2]
[393274352,1762415443747,-500.0,0.00017997,2]
[393274353,1762415443757,-500.0,0.00017997,2]
[393274354,1762415443766,-500.0,0.00017997,2]
[393274355,1762415443775,-500.0,0.00017997,2]
[393274356,1762415443784,-500.0,0.00017997,2]
[393274357,1762415443794,-574.14159547,0.00017997,2]
[393274358,1762415443803,-523.43595198,0.00017997,2]
[393274359,1762415443812,-151.0,0.00017997,2]
[393274360,1762415443822,-2046.22,0.00017998,2]
[393274361,1762415443831,-4843.58916895,0.00017999,2]
[393274362,1762415443841,-160.86,0.00017999,2]
[393274363,1762415443850,-229.391494,0.00017999,7]
[393274364,1762415443859,-229.391494,0.00017999,7]
[393274365,1762415443868,-229.391494,0.00017999,7]
[393274366,1762415443878,-229.391494,0.00017999,7]
[393274367,1762415443887,-229.391494,0.00017999,7]
[393274368,1762415443897,-158.086052,0.00017999,7]
[393274369,1762415443906,-158.086052,0.00017999,7]
[393274370,1762415443916,-194.555493,0.00017999,7]
[393274371,1762415443926,-194.555493,0.00017999,7]
[393274372,1762415443936,-194.555493,0.00017999,7]
[393274373,1762415443945,-194.555493,0.00017999,7]
[393274374,1762415443955,-194.555493,0.00017999,7]
[393274375,1762415443965,-181.51553002,0.00017999,2]
[393274376,1762415443974,-500.0,0.00017999,2]
[393274377,1762415443983,-500.0,0.00017999,2]
[393274378,1762415443999,-500.0,0.00017999,2]
[393274379,1762415444015,-408.1311233,0.00017999,2]
[393274380,1762415444027,-3413.5326305,0.00017999,2]
[393274381,1762415444036,-150.0,0.00017999,2]
[393274382,1762415444046,-2046.22,0.00017999,2]
[393274383,1762415444055,-2046.22,0.00017999,2]
[393274384,1762415444066,-2046.22,0.00017999,2]
[393274385,1762415444075,-2046.22,0.00017999,2]
[393274386,1762415444084,-2046.22,0.00017999,2]
[393274387,1762415444094,-2046.22,0.00017999,2]
[393274388,1762415444103,-2046.22,0.00017999,2]
[393274389,1762415444112,-2046.22,0.00017999,2]
[393274390,1762415444121,-2046.22,0.00017999,2]
[393274391,1762415444131,-2046.22,0.00017999,2]
[393274392,1762415444140,-2046.22,0.00017999,2]
[393274393,1762415444149,-2046.22,0.00017999,2]
[393274394,1762415444158,-2046.22,0.00017999,2]
[393274395,1762415444167,-2046.22,0.00017999,2]
[393274396,1762415444176,-2046.22,0.00017999,2]
[393274397,1762415444185,-2046.22,0.00017999,2]
[393274398,1762415444194,-2046.22,0.00017999,2]
[393274399,1762415444203,-2046.22,0.00017999,2]
[393274400,1762415444212,-2046.22,0.00017999,2]
[393274401,1762415444222,-2046.22,0.00017999,2]
[393274402,1762415444231,-2046.45575794,0.00017999,2]
[393274403,1762415444240,-300.0,0.00017999,2]
[393274404,1762415444250,-666.0,0.00017999,2]
[393274405,1762415444259,-300.0,0.00017999,2]
[393274406,1762415444268,-673.48,0.00017999,2]
[393274407,1762415444277,-673.48,0.00017999,2]
[393274408,1762415444286,-673.48,0.00017999,2]
[393274409,1762415444295,-673.48,0.00017999,2]
[393274410,1762415444304,-673.48,0.00017999,2]
[393274411,1762415444313,-673.48,0.00017999,2]
[393274412,1762415444322,-673.48,0.00017999,2]
[393274413,1762415444331,-673.48,0.00017999,2]
[393274414,1762415444340,-673.48,0.00017999,2]
[393274415,1762415444350,-673.48,0.00017999,2]
[393274416,1762415444358,-673.48,0.00017999,2]
[393274417,1762415444406,-673.48,0.00017999,2]
[393274418,1762415444415,-673.48,0.00017999,2]
[393274419,1762415444424,-673.48,0.00017999,2]
[393274420,1762415444433,-673.48,0.00017999,2]
[393274421,1762415444442,-673.48,0.00017999,2]
[393274422,1762415444451,-673.48,0.00017999,2]
[393274423,1762415444460,-673.48,0.00017999,2]
[393274424,1762415444468,-673.48,0.00017999,2]
[393274425,1762415444479,-673.48,0.00017999,2]
[393274426,1762415444488,-673.48,0.00017999,2]
[393274427,1762415444499,-673.70879056,0.00017999,2]
[393274428,1762415444510,-468.01496033,0.00017999,2]
[393274429,1762415444519,-500.0,0.00017999,2]
[393274430,1762415444528,-1129.73,0.00017999,2]
[393274431,1762415444537,-1129.73,0.00017999,2]
[393274432,1762415444547,-1129.73,0.00017999,2]
[393274433,1762415444556,-1129.73,0.00017999,2]
[393274434,1762415444565,-1129.73,0.00017999,2]
[393274435,1762415444575,-1129.73,0.00017999,2]
[393274436,1762415444584,-1129.73,0.00017999,2]
[393274437,1762415444593,-1129.73,0.00017999,2]
[393274438,1762415444602,-1129.73,0.00017999,2]
[393274439,1762415444612,-1129.73,0.00017999,2]
[393274440,1762415444621,-1129.73,0.00017999,2]
[393274441,1762415444629,-1129.73,0.00017999,2]
[393274442,1762415444638,-1129.73,0.00017999,2]
[393274443,1762415444647,-1129.73,0.00017999,2]
[393274444,1762415444656,-1129.73,0.00017999,2]
[393274445,1762415444666,-1129.73,0.00017999,2]
[393274446,1762415444675,-1129.9582264,0.00017999,2]
[393274447,1762415444684,-666.0,0.00017999,2]
[393274448,1762415444696,-500.0,0.00017999,2]
[393274449,1762415444707,-500.0,0.00017999,2]
[393274450,1762415444717,-500.0,0.00017999,2]
[393274451,1762415444727,-500.0,0.00017999,2]
[393274452,1762415444736,-500.0,0.00017999,2]
[393274453,1762415444746,-500.0,0.00017999,2]
[393274454,1762415444755,-6888661.7483388,0.00018,2]
[393274455,1762415445067,-647.98,0.00015142,2]
[393274456,1762415445076,-382.10282886,0.00015689,2]
[393274457,1762415445085,-10290.91717114,0.00018,2]
[393274458,1762415445096,-1021.894823,0.00018,2]
[393274459,1762415445107,-4899713.81873388,0.00018,2]
[393274460,1762415445116,-883.81493502,0.00018,2]
[393274461,1762415445125,-77114.50697096,0.00018,2]
[393274462,1762415445135,-175438.63017253,0.00018,2]
[393274464,1762415445576,-57242.26953156,0.00018,2]
[393274465,1762415445589,-66324.54998897,0.00018,2]
[393274466,1762415445608,-16561.5,0.00018,2]
[393274467,1762415445778,-2815.999798,0.00018,2]
[393274468,1762415445790,-1999.999865,0.00018,2]
[393274469,1762415445805,-312.15143834,0.00018,2]
[393274470,1762415445816,-888.11884992,0.00018,2]
[393274471,1762415445827,-499.71728765,0.00018,2]
[393274472,1762415445974,-415.63,0.00016356,2]
[393274473,1762415445983,-176.88,0.0001676,2]
[393274474,1762415445993,-698.56,0.00017528,2]
[393274475,1762415446003,-1309.3348345,0.00017803,3]
[393274476,1762415446015,-494.3167323,0.00017803,3]
[393274477,1762415446029,-696.3484332,0.00017803,3]
[393274478,1762415446038,-979.66721052,0.00018,2]
[393274479,1762415446049,-1261.7999,0.00018,2]
[393274485,1762415488397,500.0,0.00038691,120]
[393274486,1762415488643,500.0,0.00038691,120]
[393274487,1762415488877,500.0,0.00038691,120]
[393274488,1762415489124,500.0,0.00038691,120]
[393274489,1762415489362,500.0,0.00038691,120]
[393274490,1762415489603,500.0,0.00038691,120]
[393274491,1762415489869,500.0,0.00038691,120]
[393274492,1762415490092,500.0,0.00038691,120]
[393274493,1762415490334,500.0,0.00038691,120]
[393274494,1762415490593,512.9941637,0.00038691,120]
[393274495,1762415527713,341.97085866,0.00038691,120]
[393274496,1762415531455,233.33688755,0.00038691,120]
[393274497,1762415575193,83509.49,0.00038691,30]
[393274498,1762415579919,50000.0,0.00038691,30]
[393274499,1762415584822,50000.0,0.00038691,31]
[393274500,1762415588858,50000.0,0.00038691,32]
[393274501,1762415601412,50000.0,0.00038691,33]
[393274502,1762415607367,50000.0,0.00038691,34]
[393274504,1762415724281,1000.0,0.00013699,2]
[393274505,1762415815804,500.0,0.00038692,120]
[393274506,1762415816065,580.91907584,0.00038692,120]
[393274508,1762416128400,500.0,0.00038671,120]
[393274510,1762416261623,1023.66,8.648e-05,2]
[393274511,1762416262030,1023.66,9.086e-05,2]
[393274512,1762416262237,1023.66,9.523e-05,2]
[393274513,1762416262442,1023.66,9.96e-05,2]
[393274514,1762416262669,1023.66,0.00010398,2]
[393274515,1762416262909,1023.66,0.00010835,2]
[393274516,1762416263118,1023.66,0.00011272,2]
[393274517,1762416263320,1023.66,0.0001171,2]
[393274518,1762416263523,1023.66,0.00012147,2]
[393274519,1762416263717,787.07,0.00012584,2]
[393274520,1762416263741,236.59,0.00012584,2]
[393274521,1762416264182,1023.66,0.00013022,2]
[393274522,1762416264231,1023.66,0.00013459,2]
[393274523,1762416264341,1023.66,0.00013896,2]
[393274524,1762416264740,1023.66,0.00014333,2]
[393274525,1762416264936,1023.66,0.00014771,2]
[393274526,1762416303198,162751.44,0.00038672,30]
[393274527,1762416303271,5000.0,0.00038672,30]
[393274528,1762416307618,677.92831288,0.00011929,2]
[393274529,1762416308075,646.96422124,0.00011929,2]
[393274530,1762416425701,500.0,0.00038672,120]
[393274531,1762416426328,500.0,0.00038672,120]
[393274532,1762416426933,500.0,0.00038672,120]
[393274533,1762416433438,322.6107,0.00038672,120]
[393274534,1762416433865,620.0,0.00038672,120]
[393274537,1762416544083,-1023.66,0.00015208,2]
[393274541,1762416613228,162.730809,2e-08,2]
[393274547,1762416631809,-391.23086674,0.00015229,2]
[393274548,1762416631823,-808.76913326,0.00015229,2]
[393274549,1762416631834,-93.88674095,0.0001523,2]
[393274550,1762416631848,-1100.7542825,0.0001523,2]
[393274551,1762416631862,-5230.3403,0.0001523,2]
[393274552,1762416631877,-1133.93352267,0.0001523,2]
[393274553,1762416631892,-1164.6702764,0.0001523,2]
[393274554,1762416631915,-545.0724344,0.0001523,2]
[393274555,1762416631930,-13.27244308,0.0001523,2]
[393274556,1762416631941,-150.0,0.00015245,2]
[393274557,1762416631953,-250.0,0.00015278,2]
[393274558,1762416631965,-300.0,0.00015348,2]
[393274559,1762416631976,-268.12903937,0.00015349,2]
[393274560,1762416631990,-294.53096063,0.00015349,2]
[393274561,1762416632001,-104.46903941,0.00015491,2]
[393274571,1762416637780,-145.53096059,0.00015491,2]
[393274572,1762416637790,-320.48,0.000155,2]
[393274573,1762416637799,-151.0,0.00015503,2]
[393274574,1762416637808,-151.0,0.00015503,2]
[393274590,1762416638094,-1023.66,0.00015645,2]
[393274593,1762416638118,-200.0,0.00015754,2]
[393274596,1762416638135,-612.84786107,0.00015771,2]
[393274598,1762416638144,-500.0,0.00015771,2]
[393274600,1762416638154,-500.0,0.00015771,2]
[393274602,1762416638163,-500.0,0.00015771,2]
[393274604,1762416638173,-241.26858743,0.00015771,2]
[393274606,1762416638182,-1200.0,0.00015772,2]
[393274607,1762416638191,-201.0,0.00015772,2]
[393274608,1762416638201,-89.79920603,0.00015773,2]
[393274609,1762416638221,-410.20079397,0.00015773,2]
[393274610,1762416638231,-70.45920604,0.00015773,2]
[393274611,1762416638243,-429.54079396,0.00015773,2]
[393274612,1762416638253,-500.0,0.00015773,2]
[393274613,1762416638263,-500.0,0.00015773,2]
[393274614,1762416638272,-500.0,0.00015773,2]
[393274615,1762416638283,-300.0,0.00015788,2]
[393274616,1762416638293,-500.0,0.00015789,2]
[393274617,1762416638303,-500.0,0.00015789,2]
[393274618,1762416638312,-500.0,0.00015789,2]
[393274619,1762416638322,-500.0,0.00015789,2]
[393274620,1762416638332,-500.0,0.00015789,2]
[393274621,1762416638342,-500.0,0.00015789,2]
[393274622,1762416638352,-500.0,0.00015789,2]
[393274623,1762416638362,-500.0,0.00015789,2]
[393274624,1762416638372,-500.0,0.00015789,2]
[393274625,1762416638387,-500.0,0.00015789,2]
[393274626,1762416638396,-500.0,0.00015789,2]
[393274627,1762416638406,-500.0,0.00015789,2]
[393274628,1762416638415,-500.0,0.00015789,2]
[393274629,1762416638425,-500.0,0.00015789,2]
[393274630,1762416638435,-622.108599,0.00015789,2]
[393274631,1762416638445,-500.0,0.00015789,2]
[393274632,1762416638455,-500.0,0.00015789,2]
[393274633,1762416638465,-500.0,0.00015789,2]
[393274634,1762416638475,-500.0,0.00015789,2]
[393274635,1762416638484,-507.19276481,0.00015789,2]
[393274636,1762416638494,-9999.99,0.00015789,2]
[393274637,1762416638504,-9999.99,0.00015789,2]
[393274638,1762416638514,-999.99,0.00015789,2]
[393274639,1762416638523,-2354.23,0.00015789,2]